bitfinex-derivatives/quotes_SOLF0:USTF0_20260311
["timestamp","ask_amount","ask_price","bid_price","bid_amount"]
[1773265745545,8.67053147,87.4,87.367,3.8382902]
[1773265745746,4.02134575,87.403,87.367,3.8382902]
[1773265746045,8.67053943,87.402,87.367,3.8382902]
[1773265746246,8.67053943,87.401,87.369,3.8382902]
[1773265746447,4.02134575,87.403,87.369,3.8382902]
[1773265746745,8.67029633,87.402,87.369,3.8382902]
[1773265746945,8.67029633,87.401,87.369,3.8382902]
[1773265747146,4.02134575,87.403,87.369,3.8382902]
[1773265747349,8.67027158,87.402,87.369,3.8382902]
[1773265747646,8.67027158,87.401,87.369,3.8382902]
[1773265747847,4.02134575,87.403,87.369,3.8382902]
[1773265748047,8.67027158,87.402,87.369,3.8382902]
[1773265748249,8.67024681,87.401,87.369,3.8382902]
[1773265748449,4.02134575,87.403,87.369,3.8382902]
[1773265748744,8.67024529,87.402,87.369,3.8382902]
[1773265748949,8.67024529,87.401,87.369,3.8382902]
[1773265749248,4.02134575,87.403,87.369,3.8382902]
[1773265749449,8.67022104,87.402,87.369,3.8382902]
[1773265749649,8.67022104,87.401,87.369,3.8382902]
[1773265749845,4.02134575,87.403,87.369,3.8382902]
[1773265750047,8.66564842,87.402,87.369,3.8382902]
[1773265750247,4.02134575,87.403,87.369,3.8382902]
[1773265750448,8.66561988,87.402,87.369,3.8382902]
[1773265750647,8.66562117,87.401,87.369,3.8382902]
[1773265750848,4.02134575,87.403,87.369,3.8382902]
[1773265751048,8.66562117,87.402,87.369,3.8382902]
[1773265751346,4.02134575,87.403,87.369,3.8382902]
[1773265751651,8.66559298,87.402,87.369,3.8382902]
[1773265751950,4.02134575,87.403,87.369,3.8382902]
[1773265752145,8.66559298,87.402,87.369,3.8382902]
[1773265752347,4.02134575,87.403,87.369,3.8382902]
[1773265752552,8.66556471,87.402,87.369,3.8382902]
[1773265752748,4.02134575,87.403,87.369,3.8382902]
[1773265753049,8.66556471,87.402,87.369,3.8382902]
[1773265753242,4.02134575,87.403,87.369,3.8382902]
[1773265753445,8.66553733,87.402,87.369,3.8382902]
[1773265753642,4.02134575,87.403,87.369,3.8382902]
[1773265753843,8.6655386,87.402,87.369,3.8382902]
[1773265754043,4.02134575,87.403,87.369,3.8382902]
[1773265754352,8.66551019,87.402,87.369,3.8382902]
[1773265754549,4.02134575,87.403,87.371,10.3]
[1773265754749,8.66550878,87.402,87.371,10.3]
[1773265754952,4.02134575,87.403,87.371,10.3]
[1773265755152,8.66550878,87.402,87.371,10.3]
[1773265755450,4.02134575,87.403,87.371,10.3]
[1773265755653,8.6655049,87.402,87.371,10.3]
[1773265755852,4.02134575,87.403,87.371,10.3]
[1773265756052,8.6655062,87.402,87.371,10.3]
[1773265756253,4.02134575,87.403,87.371,10.3]
[1773265756453,8.66550138,87.402,87.371,10.3]
[1773265756654,4.02134575,87.403,87.372,3.8382902]
[1773265757245,8.66546753,87.402,87.372,3.8382902]
[1773265757648,4.02134575,87.403,87.372,3.8382902]
[1773265758051,8.6553479,87.402,87.372,3.8382902]
[1773265758258,4.02134575,87.402,87.372,3.8382902]
[1773265758556,8.65548137,87.401,87.372,3.8382902]
[1773265758750,4.02134575,87.402,87.372,3.8382902]
[1773265758948,8.65548137,87.401,87.372,3.8382902]
[1773265759155,4.02134575,87.402,87.372,3.8382902]
[1773265759357,8.65550703,87.401,87.372,3.8382902]
[1773265759549,4.02134575,87.402,87.372,3.8382902]
[1773265759750,8.65550779,87.401,87.372,3.8382902]
[1773265760057,4.02134575,87.402,87.372,3.8382902]
[1773265760258,8.65553327,87.401,87.372,3.8382902]
[1773265760458,4.02134575,87.402,87.372,3.8382902]
[1773265760658,8.65553327,87.401,87.372,3.8382902]
[1773265760861,4.02134575,87.402,87.372,3.8382902]
[1773265761155,8.65553043,87.401,87.372,3.8382902]
[1773265761456,4.00668204,87.414,87.374,3.79496933]
[1773265761762,27.08175248,87.413,87.374,3.79496933]
[1773265761961,8.65507044,87.412,87.374,3.79496933]
[1773265762260,8.65507044,87.411,87.374,3.79496933]
[1773265762561,8.65507044,87.41,87.376,14.09396933]
[1773265762756,12.66175248,87.409,87.376,14.09396933]
[1773265762955,14.42,87.413,87.376,14.09396933]
[1773265762956,12.66175248,87.408,87.376,14.09396933]
[1773265763260,4.00668204,87.406,87.369,10.3]
[1773265763461,4.00668204,87.404,87.369,10.3]
[1773265763656,12.66175248,87.403,87.369,10.3]
[1773265763861,4.00668204,87.403,87.369,10.3]
[1773265764758,4.00668204,87.403,87.373,3.79496933]
[1773265765062,12.66097306,87.402,87.373,3.79496933]
[1773265765262,4.00668204,87.402,87.373,3.79496933]
[1773265770968,4.00668204,87.402,87.366,10.3]
[1773265771266,4.00668204,87.402,87.367,3.79496933]
[1773265778967,4.00668204,87.402,87.358,21.21835343]
[1773265778968,4.00668204,87.41,87.373,3.79496933]
[1773265779167,8.65394277,87.409,87.373,3.79496933]
[1773265779370,8.65394277,87.408,87.373,3.79496933]
[1773265779573,8.65394277,87.407,87.373,3.79496933]
[1773265779769,8.65394277,87.406,87.373,3.79496933]
[1773265779971,8.65394277,87.405,87.373,3.79496933]
[1773265780171,8.65394277,87.404,87.373,3.79496933]
[1773265780374,8.65394277,87.403,87.375,4.03174751]
[1773265780567,4.00668204,87.41,87.375,4.03174751]
[1773265780768,8.67684582,87.409,87.375,4.03174751]
[1773265780976,8.67684582,87.408,87.375,4.03174751]
[1773265781171,4.00668204,87.41,87.375,4.03174751]
[1773265781367,8.67587265,87.409,87.375,4.03174751]
[1773265781578,8.67587265,87.408,87.375,4.03174751]
[1773265781776,4.00668204,87.41,87.375,4.03174751]
[1773265781974,8.67587522,87.409,87.375,4.03174751]
[1773265782174,8.67587522,87.408,87.375,4.03174751]
[1773265782477,4.00668204,87.41,87.382,10.299]
[1773265782678,8.66625196,87.409,87.382,10.299]
[1773265782876,8.66625196,87.408,87.375,4.03174751]
[1773265783177,4.00668204,87.41,87.376,4.03174751]
[1773265783370,8.66416182,87.409,87.376,4.03174751]
[1773265783569,8.66416182,87.408,87.376,4.03174751]
[1773265783874,4.00668204,87.41,87.376,4.03174751]
[1773265784174,8.66336778,87.409,87.376,4.03174751]
[1773265784375,8.66336778,87.408,87.376,4.03174751]
[1773265784578,4.00668204,87.41,87.376,4.03174751]
[1773265784779,8.66348431,87.409,87.376,4.03174751]
[1773265785078,4.00668204,87.41,87.376,4.03174751]
[1773265785277,8.65877906,87.409,87.376,4.03174751]
[1773265785478,4.00668204,87.41,87.378,10.299]
[1773265785779,8.65498124,87.409,87.378,10.299]
[1773265785978,4.00668204,87.41,87.379,4.03174751]
[1773265786180,8.65645078,87.409,87.379,4.03174751]
[1773265786380,8.65645078,87.408,87.38,10.299]
[1773265786580,4.00668204,87.41,87.38,10.299]
[1773265786781,8.65754341,87.409,87.38,10.299]
[1773265787080,4.00668204,87.41,87.38,10.299]
[1773265787287,8.65735705,87.409,87.38,10.299]
[1773265787472,8.46049852,87.426,87.38,14.33074751]
[1773265787676,3.89313841,87.424,87.383,4.03174751]
[1773265787973,3.89313841,87.422,87.383,4.03174751]
[1773265788172,3.89313841,87.42,87.383,4.03174751]
[1773265788381,3.89313841,87.418,87.383,4.03174751]
[1773265789480,3.89313841,87.418,87.384,14.32974751]
[1773265791880,3.89313841,87.418,87.385,4.01274718]
[1773265795788,3.89313841,87.418,87.386,10.298]
[1773265796785,3.89313841,87.418,87.386,14.31074718]
[1773265801089,14.42,87.427,87.391,4.01274718]
[1773265801291,11.94119259,87.447,87.391,4.01274718]
[1773265801490,11.94119259,87.457,87.4,2.4432446]
[1773265804494,11.94119259,87.457,87.417,10.294]
[1773265805293,11.94119259,87.457,87.409,10.295]
[1773265807490,11.94119259,87.457,87.416,10.295]
[1773265809197,10.29,87.455,87.39,2.4432446]
[1773265809396,12.0525595,87.454,87.39,2.4432446]
[1773265809597,12.0525595,87.454,87.4,2.4432446]
[1773265811397,12.0525595,87.454,87.41,10.295]
[1773265812100,12.05879732,87.451,87.402,10.296]
[1773265813400,10.291,87.45,87.402,10.296]
[1773265813601,12.04478919,87.449,87.402,10.296]
[1773265814803,12.04478919,87.446,87.402,10.296]
[1773265820708,12.04211624,87.444,87.394,10.297]
[1773265822400,12.01255908,87.442,87.394,10.297]
[1773265824307,10.292,87.441,87.394,10.297]
[1773265824500,12.01605106,87.44,87.394,10.297]
[1773265825001,10.292,87.438,87.394,10.297]
[1773265825202,12.01532096,87.437,87.394,10.297]
[1773265826999,12.01532096,87.434,87.385,10.298]
[1773265827405,12.01532096,87.434,87.361,14.4]
[1773265827406,12.01532096,87.434,87.37,2.4432446]
[1773265828407,12.01805437,87.417,87.378,10.299]
[1773265829405,10.295,87.416,87.378,10.299]
[1773265829602,12.01554632,87.415,87.37,2.4432446]
[1773265831407,12.01554632,87.415,87.378,10.299]
[1773265831905,22.31054632,87.415,87.378,10.299]
[1773265832104,12.02890185,87.414,87.378,10.299]
[1773265851627,12.04957736,87.412,87.37,2.44242361]
[1773265853428,12.04957736,87.412,87.38,10.299]
[1773265862033,12.04957736,87.412,87.37,2.44242361]
[1773265866542,12.04957736,87.412,87.371,10.3]
[1773265873444,12.04957736,87.412,87.378,10.299]
[1773265881044,12.04957736,87.412,87.384,10.298]
[1773265899462,20.6171956,87.411,87.384,10.298]
[1773265899662,11.98215028,87.411,87.384,10.298]
[1773265901367,11.98215028,87.411,87.36,2.44242361]
[1773265901368,11.98215028,87.411,87.376,21.21835343]
[1773265902063,11.91472987,87.43,87.391,10.297]
[1773265902264,11.91472987,87.428,87.391,10.297]
[1773265902465,11.91472987,87.426,87.391,10.297]
[1773265902665,11.91472987,87.424,87.391,10.297]
[1773265902871,20.54794163,87.423,87.391,10.297]
[1773265903064,8.63321176,87.422,87.391,10.297]
[1773265903266,11.91472987,87.423,87.391,10.297]
[1773265903267,8.63321176,87.421,87.391,10.297]
[1773265903561,11.91472987,87.423,87.391,10.297]
[1773265903767,8.63201553,87.422,87.391,10.297]
[1773265903965,11.91472987,87.423,87.391,10.297]
[1773265904166,11.91472987,87.423,87.38,31.51735343]
[1773265904367,11.90594502,87.421,87.38,10.299]
[1773265908567,11.90594502,87.421,87.387,10.298]
[1773265908874,11.90594502,87.421,87.378,21.21835343]
[1773265909278,11.90594502,87.421,87.38,2.44250201]
[1773265910472,11.90594502,87.421,87.394,10.297]
[1773265911881,20.49904368,87.429,87.401,10.296]
[1773265912177,11.87410277,87.429,87.401,10.296]
[1773265913180,11.88232027,87.45,87.39,2.44250201]
[1773265913477,11.88232027,87.448,87.392,21.21835343]
[1773265913677,11.88232027,87.446,87.392,21.21835343]
[1773265913878,20.50520216,87.445,87.392,21.21835343]
[1773265914077,11.88232027,87.443,87.392,21.21835343]
[1773265914276,11.88232027,87.443,87.395,21.21835343]
[1773265914473,11.88232027,87.443,87.4,2.44250201]
[1773265914978,11.88232027,87.443,87.42,10.294]
[1773265917584,11.89125175,87.453,87.42,10.294]
[1773265919186,11.89125175,87.453,87.412,10.295]
[1773265921885,11.89125175,87.453,87.421,10.294]
[1773265930387,11.87150207,87.449,87.388,35.61835343]
[1773265930588,11.87150207,87.449,87.388,14.4]
[1773265930787,11.87150207,87.449,87.408,10.295]
[1773265930991,11.87150207,87.449,87.39,2.44250201]
[1773265931191,11.87150207,87.449,87.4,2.44250201]
[1773265932186,11.87150207,87.449,87.421,10.294]
[1773265933391,11.87150207,87.449,87.4,2.44250201]
[1773265935386,11.87150207,87.449,87.422,10.294]
[1773265939689,11.87150207,87.449,87.414,10.295]
[1773265940193,11.87150207,87.449,87.4,2.44250201]
[1773265940693,11.87150207,87.449,87.421,10.294]
[1773265942887,11.87150207,87.449,87.431,10.293]
[1773265943090,11.87150207,87.449,87.4,2.44250201]
[1773265944596,11.87150207,87.449,87.422,10.294]
[1773265953601,11.89928608,87.447,87.422,10.294]
[1773265957102,8.88392294,87.446,87.422,10.294]
[1773265957406,8.88392294,87.445,87.422,10.294]
[1773265957597,11.89928608,87.447,87.415,10.295]
[1773265957800,11.90018706,87.445,87.404,21.21835343]
[1773265958203,8.88604117,87.444,87.405,21.21835343]
[1773265958403,11.90018706,87.445,87.405,21.21835343]
[1773265958701,8.886125,87.444,87.405,21.21835343]
[1773265958901,11.90018706,87.445,87.416,14.27713045]
[1773265959103,8.886125,87.444,87.417,14.27713045]
[1773265959305,11.90018706,87.445,87.417,14.27713045]
[1773265959500,8.88738509,87.444,87.423,10.294]
[1773265959700,11.90018706,87.445,87.423,10.294]
[1773265963106,11.90018706,87.445,87.417,14.27713045]
[1773265964410,11.90018706,87.445,87.424,10.294]
[1773265969514,11.90018706,87.445,87.417,14.27713045]
[1773265974123,11.90018706,87.445,87.418,14.27713045]
[1773265974422,8.80474668,87.444,87.422,10.294]
[1773265974622,11.86756763,87.461,87.422,10.294]
[1773265974823,8.80538898,87.46,87.422,14.27713045]
[1773265975022,8.80538898,87.459,87.422,14.27713045]
[1773265975222,11.86600306,87.457,87.422,14.27713045]
[1773265975425,20.67139204,87.456,87.422,14.27713045]
[1773265975626,8.80538898,87.455,87.422,14.27713045]
[1773265975821,8.80538898,87.454,87.422,14.27713045]
[1773265976024,8.80538898,87.453,87.422,14.27713045]
[1773265976226,8.80538898,87.452,87.428,10.293]
[1773265976426,8.80538898,87.451,87.428,10.293]
[1773265976629,8.80538898,87.45,87.428,10.293]
[1773265976820,8.80538898,87.449,87.428,10.293]
[1773265977127,11.86600306,87.456,87.428,10.293]
[1773265977425,8.80515565,87.455,87.428,10.293]
[1773265977626,8.80515565,87.454,87.428,10.293]
[1773265977827,8.80515565,87.453,87.428,10.293]
[1773265978026,8.80515565,87.452,87.428,10.293]
[1773265978228,11.86600306,87.456,87.428,10.293]
[1773265978426,11.85880824,87.454,87.428,10.293]
[1773265978631,11.85880824,87.452,87.426,14.27713045]
[1773265979128,11.85880824,87.452,87.425,14.27713045]
[1773265982338,11.85880824,87.452,87.424,14.27713045]
[1773265983339,11.85880824,87.452,87.425,10.293]
[1773265993944,11.83170508,87.473,87.432,10.293]
[1773265994143,11.83170508,87.471,87.432,10.293]
[1773265994342,11.83170508,87.469,87.432,10.293]
[1773265994539,11.83170508,87.467,87.432,10.293]
[1773265994844,11.83170508,87.465,87.43,2.44088215]
[1773265995043,11.83170508,87.517,87.46,2.44088215]
[1773265995343,11.83170508,87.517,87.473,14.21905097]
[1773265995739,11.83170508,87.517,87.494,10.285]
[1773265996141,11.8226084,87.528,87.494,10.285]
[1773265997344,11.8226084,87.528,87.501,10.284]
[1773265998140,11.77735755,87.549,87.508,10.284]
[1773265998544,11.77735755,87.549,87.49,2.44088215]
[1773265998848,11.77735755,87.549,87.5,2.44088215]
[1773265999346,0.00046775,87.554,87.52,2.44088215]
[1773266000340,0.00046775,87.554,87.538,10.28]
[1773266003751,0.00046775,87.554,87.528,10.281]
[1773266003954,0.00046775,87.554,87.513,14.4]
[1773266004252,0.00046775,87.554,87.518,10.282]
[1773266004450,0.00046775,87.554,87.52,2.44088215]
[1773266005353,0.00046775,87.554,87.521,10.282]
[1773266006047,10.65676863,87.66,87.513,14.4]
[1773266006048,11.75618918,87.591,87.54,2.44088215]
[1773266006244,11.75618918,87.591,87.55,2.44088215]
[1773266007447,11.75618918,87.591,87.542,10.28]
[1773266007652,11.75618918,87.591,87.55,10.279]
[1773266015055,11.75618918,87.591,87.542,10.28]
[1773266019263,11.76156225,87.586,87.534,10.281]
[1773266019961,11.76156225,87.578,87.53,2.44088215]
[1773266020159,11.76156225,87.578,87.52,2.44088215]
[1773266020355,11.19028385,87.564,87.52,2.44088215]
[1773266020555,11.19028385,87.564,87.513,10.283]
[1773266020960,10.278,87.556,87.51,2.44088215]
[1773266021761,10.279,87.549,87.51,2.44088215]
[1773266022468,11.49167893,87.548,87.51,2.44088215]
[1773266025559,11.49167893,87.548,87.505,10.284]
[1773266025765,11.49923756,87.546,87.505,10.284]
[1773266026463,10.28,87.544,87.5,2.44088215]
[1773266026663,11.49923756,87.543,87.5,2.44088215]
[1773266027970,11.49923756,87.543,87.502,10.284]
[1773266029263,11.49923756,87.543,87.508,10.284]
[1773266029467,11.49923756,87.543,87.51,2.44088215]
[1773266031071,11.49923756,87.543,87.511,10.283]
[1773266031263,11.49923756,87.543,87.5,2.44088215]
[1773266031666,11.49923756,87.543,87.5,2.43545107]
[1773266031971,11.49923756,87.543,87.49,2.43545107]
[1773266032367,11.49923756,87.543,87.48,2.43545107]
[1773266033173,11.47957812,87.539,87.48,2.43545107]
[1773266033369,11.48938602,87.534,87.481,10.287]
[1773266035770,11.48938602,87.534,87.487,10.286]
[1773266036379,11.4658673,87.532,87.487,10.286]
[1773266037077,11.4658673,87.527,87.48,2.43545107]
[1773266038175,11.4658673,87.527,87.488,10.286]
[1773266046891,11.4658673,87.527,87.48,12.72245107]
[1773266047188,11.4658673,87.527,87.48,2.43545107]
[1773266047391,11.47100177,87.526,87.48,2.43545107]
[1773266048391,11.47100177,87.526,87.485,10.286]
[1773266049992,11.47419268,87.524,87.477,10.287]
[1773266050191,11.47419268,87.524,87.46,16.65450204]
[1773266050493,11.47419268,87.524,87.46,2.43545107]
[1773266051390,11.48470656,87.513,87.463,10.289]
[1773266051589,11.48470656,87.513,87.46,2.43545107]
[1773266051789,11.48470656,87.513,87.48,2.43545107]
[1773266052484,11.48470656,87.513,87.47,2.43545107]
[1773266052691,11.48470656,87.513,87.48,2.43545107]
[1773266053191,11.48470656,87.513,87.481,10.287]
[1773266072410,11.48470656,87.513,87.479,14.21905097]
[1773266072709,11.48470656,87.513,87.48,14.21905097]
[1773266073208,11.48470656,87.513,87.481,14.21905097]
[1773266073906,11.48470656,87.513,87.482,14.21905097]
[1773266074111,11.48470656,87.513,87.481,14.21905097]
[1773266074311,11.48470656,87.513,87.483,14.21905097]
[1773266074605,11.48470656,87.513,87.482,14.21905097]
[1773266075110,165.64411297,87.549,87.47,2.43545107]
[1773266075111,11.49843213,87.53,87.485,10.286]
[1773266075511,11.49843213,87.53,87.49,2.43545107]
[1773266075916,11.50181839,87.528,87.49,2.43545107]
[1773266076505,8.55076436,87.527,87.492,10.286]
[1773266076710,11.50181839,87.528,87.492,10.286]
[1773266077511,11.50181839,87.528,87.5,2.43545107]
[1773266078113,11.51156036,87.545,87.52,2.43545107]
[1773266079512,11.51156036,87.545,87.513,10.283]
[1773266080214,11.49875727,87.543,87.513,10.283]
[1773266084606,11.49875727,87.543,87.506,10.284]
[1773266086715,11.49875727,87.543,87.502,14.21905097]
[1773266087211,11.49875727,87.543,87.501,14.21905097]
[1773266089315,11.49875727,87.543,87.504,10.284]
[1773266091821,11.49875727,87.543,87.5,14.21905097]
[1773266092222,11.49875727,87.543,87.499,14.21905097]
[1773266092520,11.49875727,87.543,87.5,16.65505893]
[1773266092920,11.49875727,87.543,87.501,14.21905097]
[1773266093113,11.49875727,87.543,87.5,16.65505893]
[1773266093421,11.49875727,87.543,87.508,10.284]
[1773266095421,11.49875727,87.543,87.51,2.43600796]
[1773266102131,11.49875727,87.543,87.511,10.283]
[1773266115238,4.10764705,87.557,87.534,14.19235805]
[1773266115442,0.00064705,87.609,87.542,14.19235805]
[1773266115638,2.43600796,87.61,87.542,14.19235805]
[1773266115837,2.43600796,87.61,87.541,14.19235805]
[1773266116245,2.43600796,87.61,87.54,2.43600796]
[1773266116442,10.273,87.602,87.551,10.279]
[1773266117244,5.70403226,87.601,87.551,10.279]
[1773266122648,5.70751761,87.609,87.56,2.43600796]
[1773266124341,5.70751761,87.609,87.571,10.276]
[1773266124539,5.70320874,87.599,87.54,2.43600796]
[1773266124743,2.43600796,87.59,87.53,2.43600796]
[1773266124939,5.70320874,87.576,87.522,10.282]
[1773266125341,5.70320874,87.576,87.51,2.43600796]
[1773266125540,5.7172922,87.566,87.514,10.283]
[1773266126440,5.7172922,87.564,87.514,10.283]
[1773266140862,5.7172922,87.564,87.52,10.282]
[1773266141065,5.51394446,87.558,87.51,2.43600796]
[1773266142064,5.51394446,87.558,87.52,10.282]
[1773266147167,5.51394446,87.558,87.526,10.282]
[1773266153169,5.51394446,87.558,87.52,2.43600796]
[1773266153367,5.51394446,87.558,87.502,14.19235805]
[1773266153565,5.51394446,87.558,87.5,2.43572877]
[1773266153866,2.43572877,87.57,87.5,2.43572877]
[1773266153867,5.50719799,87.55,87.5,2.43572877]
[1773266154470,5.50719799,87.54,87.5,2.43572877]
[1773266154671,5.50719799,87.54,87.492,14.19235805]
[1773266154871,5.50719799,87.54,87.49,2.43572877]
[1773266155673,20.551,87.579,87.491,10.286]
[1773266155674,5.51870163,87.536,87.491,10.286]
[1773266163580,5.51870163,87.536,87.453,14.38]
[1773266163581,5.51870163,87.536,87.473,14.19235805]
[1773266163981,5.51870163,87.536,87.47,2.43572877]
[1773266165381,5.56091458,87.525,87.474,10.288]
[1773266166287,5.56091458,87.525,87.481,10.287]
[1773266167384,5.56091458,87.525,87.487,10.286]
[1773266175096,5.56091458,87.525,87.481,10.287]
[1773266176489,5.57142244,87.523,87.481,10.287]
[1773266188797,5.57142244,87.523,87.486,10.286]
[1773266197202,10.282,87.522,87.486,10.286]
[1773266197409,5.61812307,87.521,87.486,10.286]
[1773266198105,8.43695332,87.531,87.481,14.19235805]
[1773266198106,5.61812307,87.518,87.481,14.19235805]
[1773266198310,5.61812307,87.518,87.483,14.19235805]
[1773266198803,5.61812307,87.518,87.482,14.19235805]
[1773266199208,15.9010154,87.517,87.483,24.47935805]
[1773266200208,15.9010154,87.517,87.484,14.19235805]
[1773266201009,5.61803765,87.516,87.484,14.19235805]
[1773266202407,10.283,87.515,87.484,14.19235805]
[1773266203200,10.283,87.515,87.485,14.19235805]
[1773266206210,10.283,87.515,87.486,14.19235805]
[1773266207210,10.283,87.515,87.487,14.19235805]
[1773266207710,10.283,87.515,87.486,14.19235805]
[1773266207909,10.283,87.515,87.487,14.19235805]
[1773266208110,10.283,87.515,87.488,14.19235805]
[1773266208610,15.91063692,87.515,87.488,14.19235805]
[1773266211913,15.91063692,87.515,87.489,14.19235805]
[1773266212114,10.283,87.515,87.489,14.19235805]
[1773266212612,10.283,87.515,87.488,14.19235805]
[1773266215116,10.283,87.515,87.489,14.19235805]
[1773266216014,10.283,87.515,87.488,14.19235805]
[1773266217114,10.283,87.515,87.489,14.19235805]
[1773266220119,10.283,87.515,87.482,10.287]
[1773266220120,10.283,87.515,87.493,14.19235805]
[1773266220920,3.77135831,87.509,87.441,3.91897875]
[1773266221117,3.77135831,87.499,87.441,3.91897875]
[1773266221323,3.77135831,87.485,87.441,3.91897875]
[1773266222423,3.77135831,87.48,87.442,14.20997875]
[1773266222624,3.77135831,87.48,87.443,3.91897875]
[1773266230027,3.77135831,87.48,87.445,3.91897875]
[1773266230225,16.88177122,87.508,87.471,3.91897875]
[1773266230523,3.77135831,87.515,87.481,3.91897875]
[1773266230729,3.77135831,87.515,87.483,10.287]
[1773266231721,3.77135831,87.515,87.481,3.91897875]
[1773266236127,10.282,87.523,87.481,3.91897875]
[1773266236329,3.77135831,87.526,87.483,3.91897875]
[1773266237133,10.281,87.53,87.483,3.91897875]
[1773266237431,10.281,87.53,87.486,3.91897875]
[1773266240128,14.07473232,87.53,87.486,3.91897875]
[1773266240437,14.07473232,87.53,87.488,3.94065744]
[1773266241033,14.07473232,87.53,87.491,3.94065744]
[1773266251749,3.79373232,87.529,87.491,3.94065744]
[1773266262457,14.4,87.535,87.494,3.99356764]
[1773266262663,3.93119402,87.551,87.5,2.43715607]
[1773266262962,3.93119402,87.551,87.501,3.99356764]
[1773266263161,3.93119402,87.551,87.512,3.99356764]
[1773266264256,18.33119402,87.551,87.512,3.99356764]
[1773266264461,10.279,87.55,87.512,3.99356764]
[1773266266464,10.279,87.55,87.513,10.283]
[1773266266664,18.33119402,87.551,87.514,3.99356764]
[1773266266961,14.4,87.551,87.514,3.99356764]
[1773266267353,14.4,87.551,87.517,3.99356764]
[1773266269464,10.278,87.554,87.517,3.99356764]
[1773266269858,3.93119402,87.553,87.517,3.99356764]
[1773266271363,10.279,87.548,87.517,3.99356764]
[1773266280067,10.28,87.543,87.517,3.99356764]
[1773266280666,10.279,87.546,87.517,3.99356764]
[1773266289371,14.21117603,87.546,87.517,3.99356764]
[1773266289974,3.93217603,87.546,87.517,3.99356764]
[1773266292765,10.28,87.545,87.517,3.99356764]
[1773266299677,3.93217603,87.541,87.507,3.82500591]
[1773266301382,10.28,87.54,87.507,3.82500591]
[1773266301582,3.93217603,87.541,87.507,3.82500591]
[1773266306294,3.93217603,87.541,87.508,14.15029789]
[1773266306690,3.93217603,87.541,87.508,18.17724464]
[1773266306999,3.93217603,87.541,87.509,4.02694675]
[1773266307300,3.93217603,87.541,87.511,14.15029789]
[1773266311402,3.93217603,87.541,87.512,14.15029789]
[1773266319208,3.93217603,87.541,87.511,14.15029789]
[1773266320506,3.80053955,87.537,87.49,3.80315182]
[1773266320706,3.80053955,87.535,87.482,25.07030689]
[1773266320912,3.80053955,87.533,87.483,3.80315182]
[1773266321111,3.80053955,87.531,87.483,3.80315182]
[1773266321708,3.80053955,87.529,87.483,3.80315182]
[1773266321907,3.80053955,87.527,87.483,3.80315182]
[1773266322110,3.80053955,87.517,87.48,2.43562226]
[1773266322409,3.80053955,87.517,87.472,3.80315182]
[1773266322616,3.80053955,87.515,87.472,3.80315182]
[1773266322804,3.80053955,87.513,87.472,3.80315182]
[1773266323410,3.80053955,87.507,87.472,3.80315182]
[1773266324708,3.80053955,87.501,87.461,3.80315182]
[1773266326419,3.80053955,87.499,87.461,3.80315182]
[1773266328415,3.80053955,87.498,87.461,3.80315182]
[1773266330418,2.43562226,87.51,87.461,3.80315182]
[1773266330419,3.67931404,87.495,87.461,3.80315182]
[1773266331020,3.67931404,87.49,87.46,3.77461759]
[1773266335626,3.67931404,87.489,87.441,3.77461759]
[1773266337326,10.288,87.474,87.441,3.77461759]
[1773266337524,14.4,87.507,87.402,56.26015507]
[1773266337525,3.67931404,87.473,87.418,3.77461759]
[1773266337720,3.67931404,87.473,87.421,3.77461759]
[1773266338423,13.96831404,87.465,87.424,3.77461759]
[1773266338820,3.67931404,87.464,87.424,3.77461759]
[1773266339922,3.67931404,87.485,87.441,3.77461759]
[1773266340321,3.67931404,87.509,87.461,3.77461759]
[1773266340622,10.284,87.507,87.466,10.289]
[1773266340820,10.284,87.507,87.467,3.77461759]
[1773266342721,3.67931404,87.509,87.469,3.77461759]
[1773266342925,3.67931404,87.521,87.471,3.77461759]
[1773266344018,3.67931404,87.532,87.483,3.77461759]
[1773266345325,10.281,87.529,87.487,3.77461759]
[1773266347026,13.96031404,87.529,87.487,3.77461759]
[1773266347723,3.67931404,87.528,87.487,3.77461759]
[1773266350223,3.67931404,87.528,87.489,3.77461759]
[1773266350922,13.95831404,87.546,87.494,3.77461759]
[1773266351127,3.67931404,87.545,87.494,3.77461759]
[1773266351330,3.67931404,87.545,87.501,3.77461759]
[1773266352433,3.67931404,87.545,87.506,3.77461759]
[1773266353424,3.67931404,87.545,87.508,3.77461759]